fUSD/lending_fUSD_20240712
["ID","MTS","AMOUNT","RATE_DAILY","PERIOD"]
[331801634,1720765963689,-1182.27,0.00014739,2]
[331801635,1720765963699,-751.88,0.00014739,2]
[331801636,1720765963709,-578.66,0.00014739,2]
[331801637,1720765963719,-788.87,0.00014739,2]
[331801638,1720765963729,-589.96,0.00014739,2]
[331801639,1720765963739,-1518.85,0.00014739,2]
[331801640,1720765963749,-500.0,0.00014739,2]
[331801641,1720765963760,-863.12,0.00014739,2]
[331801642,1720765963770,-500.0,0.00014739,2]
[331801643,1720765963782,-765.3,0.00014739,2]
[331801644,1720765963792,-1173.86,0.00014739,2]
[331801645,1720765963802,-714.93,0.00014739,2]
[331801646,1720765963813,-500.0,0.00014739,2]
[331801647,1720765963823,-889.91,0.00014739,2]
[331801648,1720765963833,-500.0,0.00014739,2]
[331801649,1720765963843,-797.27,0.00014739,2]
[331801650,1720765963852,-508.63,0.00014739,2]
[331801651,1720765963862,-500.0,0.00014739,2]
[331801652,1720765963872,-512.8,0.00014739,2]
[331801653,1720765963881,-1002.89,0.00014739,2]
[331801654,1720765963891,-500.0,0.00014739,2]
[331801655,1720765963900,-905.0,0.00014739,2]
[331801656,1720765963912,-504.61,0.00014739,2]
[331801657,1720765963922,-500.0,0.00014739,2]
[331801658,1720765963932,-282.62197132,0.00014739,2]
[331801659,1720765963962,-217.37802868,0.00014739,2]
[331801660,1720765963974,-998.09,0.00014739,2]
[331801661,1720765963984,-1181.8,0.00014739,2]
[331801662,1720765963993,-1692.88,0.00014739,2]
[331801663,1720765964005,-806.67,0.00014739,2]
[331801664,1720765964015,-1115.55,0.00014739,2]
[331801665,1720765964025,-1111.86,0.00014739,2]
[331801666,1720765964036,-445.86,0.00014739,2]
[331801667,1720765964046,-1152.37,0.00014739,2]
[331801668,1720765964055,-1099.21,0.00014739,2]
[331801669,1720765964065,-500.0,0.00014739,2]
[331801670,1720765964075,-958.58,0.00014739,2]
[331801671,1720765964085,-1435.54,0.00014739,2]
[331801672,1720765964095,-933.39,0.00014739,2]
[331801673,1720765964105,-885.22,0.00014739,2]
[331801674,1720765964114,-525.55,0.00014739,2]
[331801675,1720765964124,-578.47,0.00014739,2]
[331801676,1720765964134,-585.1,0.00014739,2]
[331801677,1720765964144,-768.43,0.00014739,2]
[331801678,1720765964154,-500.0,0.00014739,2]
[331801679,1720765964164,-1131.03,0.00014739,2]
[331801680,1720765964174,-500.66,0.00014739,2]
[331801681,1720765964183,-1387.16,0.00014739,2]
[331801682,1720765964193,-769.71,0.00014739,2]
[331801683,1720765964203,-929.61,0.00014739,2]
[331801684,1720765964213,-1195.55,0.00014739,2]
[331801685,1720765964223,-1164.92,0.00014739,2]
[331801686,1720765964232,-592.67,0.00014739,2]
[331801687,1720765964242,-832.05,0.00014739,2]
[331801688,1720765964254,-1157.39,0.00014739,2]
[331801689,1720765964264,-965.25,0.00014739,2]
[331801690,1720765964274,-1057.96,0.00014739,2]
[331801691,1720765964285,-500.0,0.00014739,2]
[331801692,1720765964295,-663.73,0.00014739,2]
[331801693,1720765964304,-500.0,0.00014739,2]
[331801694,1720765964314,-996.83,0.00014739,2]
[331801695,1720765964324,-778.42,0.00014739,2]
[331801696,1720765964333,-500.94,0.00014739,2]
[331801697,1720765964343,-500.0,0.00014739,2]
[331801698,1720765964353,-1011.24,0.00014739,2]
[331801699,1720765964363,-500.0,0.00014739,2]
[331801700,1720765964373,-724.27,0.00014739,2]
[331801701,1720765964383,-948.7,0.00014739,2]
[331801702,1720765964392,-1338.17,0.00014739,2]
[331801703,1720765964402,-255.70462219,0.00014739,2]
[331801704,1720765964411,-894.67,0.00014739,2]
[331801705,1720765964421,-691.16,0.00014739,2]
[331801706,1720765964431,-706.91,0.00014739,2]
[331801707,1720765964440,-1648.59,0.00014739,2]
[331801708,1720765964450,-579.34,0.00014739,2]
[331801709,1720765964459,-534.75,0.00014739,2]
[331801710,1720765964469,-6673.84,0.00014739,2]
[331801711,1720765964479,-791.66,0.00014739,2]
[331801712,1720765964488,-868.6,0.00014739,2]
[331801713,1720765964498,-503.87,0.00014739,2]
[331801714,1720765964507,-1463.05,0.00014739,2]
[331801715,1720765964519,-500.0,0.00014739,2]
[331801716,1720765964530,-1711.11,0.00014739,2]
[331801717,1720765964539,-940.12,0.00014739,2]
[331801718,1720765964549,-1103.87,0.00014739,2]
[331801719,1720765964559,-838.82,0.00014739,2]
[331801720,1720765964570,-906.68,0.00014739,2]
[331801721,1720765964580,-774.99,0.00014739,2]
[331801722,1720765964589,-345.60984304,0.00014739,2]
[331801723,1720765964601,-1003.46,0.00014739,2]
[331801724,1720765964611,-776.49,0.00014739,2]
[331801725,1720765964620,-715.19,0.00014739,2]
[331801726,1720765964630,-811.17,0.00014739,2]
[331801727,1720765964640,-500.0,0.00014739,2]
[331801728,1720765964649,-1169.16,0.00014739,2]
[331801729,1720765964659,-2671.99,0.00014739,2]
[331801730,1720765964670,-804.64,0.00014739,2]
[331801731,1720765964680,-516.06,0.00014739,2]
[331801732,1720765964690,-1567.42,0.00014739,2]
[331801733,1720765964700,-1123.97,0.00014739,2]
[331801734,1720765964710,-1159.17,0.00014739,2]
[331801735,1720765964720,-682.47,0.00014739,2]
[331801736,1720765964730,-7796.51,0.00014739,2]
[331801737,1720765964740,-884.1,0.00014739,2]
[331801738,1720765964751,-3427.86,0.00014739,2]
[331801739,1720765964760,-761.42,0.00014739,2]
[331801740,1720765964769,-2349.61,0.00014739,2]
[331801741,1720765964780,-2824.19,0.00014739,2]
[331801742,1720765964791,-544.06,0.00014739,2]
[331801743,1720765964801,-1413.14,0.00014739,2]
[331801744,1720765964810,-215.49161336,0.00014739,2]
[331801745,1720765964820,-611.60290639,0.00014739,2]
[331801746,1720765964829,-746.16,0.00014739,2]
[331801747,1720765964838,-568.05,0.00014739,2]
[331801748,1720765964848,-1225.06,0.00014739,2]
[331801749,1720765964857,-1040.64,0.00014739,2]
[331801750,1720765964867,-502.01,0.00014739,2]
[331801751,1720765964876,-945.48,0.00014739,2]
[331801752,1720765964886,-1864.03,0.00014739,2]
[331801753,1720765964895,-3139.48,0.00014739,2]
[331801754,1720765964905,-782.62,0.00014739,2]
[331801755,1720765964915,-967.92,0.00014739,2]
[331801756,1720765964924,-817.59,0.00014739,2]
[331801757,1720765964934,-760.77,0.00014739,2]
[331801758,1720765964944,-672.02,0.00014739,2]
[331801759,1720765964954,-500.0,0.00014739,2]
[331801760,1720765964964,-1369.87,0.00014739,2]
[331801761,1720765964975,-503.52,0.00014739,2]
[331801762,1720765964984,-927.94,0.00014739,2]
[331801763,1720765964993,-510.11,0.00014739,2]
[331801764,1720765965004,-883.29,0.00014739,2]
[331801765,1720765965014,-703.12,0.00014739,2]
[331801766,1720765965024,-913.43,0.00014739,2]
[331801767,1720765965034,-1249.82,0.00014739,2]
[331801768,1720765965044,-698.85,0.00014739,2]
[331801769,1720765965054,-513.61,0.00014739,2]
[331801770,1720765965063,-3390.01,0.00014739,2]
[331801771,1720765965073,-977.7,0.00014739,2]
[331801772,1720765965083,-522.91,0.00014739,2]
[331801773,1720765965093,-641.99,0.00014739,2]
[331801774,1720765965103,-9.10070088,0.00014739,2]
[331801775,1720765965313,-751.33929912,0.00014739,2]
[331801776,1720765965323,-500.0,0.00014794,2]
[331801777,1720765965333,-156.22360587,0.00014794,2]
[331801778,1720765965343,-623.20747314,0.00014794,2]
[331801779,1720765965353,-500.0,0.00014794,2]
[331801780,1720765965363,-500.0,0.00014794,2]
[331801781,1720765965374,-600.13,0.00014794,2]
[331801782,1720765965384,-533.46,0.00014794,2]
[331801783,1720765965394,-547.29,0.00014794,2]
[331801784,1720765965403,-527.94,0.00014794,2]
[331801785,1720765965413,-500.0,0.00014794,2]
[331801786,1720765965423,-829.62,0.00014794,2]
[331801787,1720765965433,-678.42,0.00014794,2]
[331801788,1720765965443,-500.0,0.00014794,2]
[331801789,1720765965452,-1078.13,0.00014794,2]
[331801790,1720765965462,-500.0,0.00014794,2]
[331801791,1720765965473,-599.97,0.00014794,2]
[331801792,1720765965482,-572.91,0.00014794,2]
[331801793,1720765965492,-541.87,0.00014794,2]
[331801794,1720765965503,-561.01,0.00014794,2]
[331801795,1720765965513,-526.37,0.00014794,2]
[331801796,1720765965526,-658.35,0.00014794,2]
[331801797,1720765965535,-597.81,0.00014794,2]
[331801798,1720765965545,-665.34,0.00014794,2]
[331801799,1720765965555,-879.54,0.00014794,2]
[331801800,1720765965565,-1042.83,0.00014794,2]
[331801801,1720765965575,-500.0,0.00014794,2]
[331801802,1720765965586,-801.96,0.00014794,2]
[331801803,1720765965597,-676.83,0.00014794,2]
[331801804,1720765965607,-576.46,0.00014794,2]
[331801805,1720765965616,-679.71,0.00014794,2]
[331801806,1720765965626,-699.82,0.00014794,2]
[331801807,1720765965636,-902.64,0.00014794,2]
[331801808,1720765965723,-500.0,0.00014794,2]
[331801809,1720765965733,-969.66,0.00014794,2]
[331801810,1720765965743,-1386.9,0.00014794,2]
[331801811,1720765965753,-832.86,0.00014794,2]
[331801812,1720765965763,-1142.56,0.00014794,2]
[331801813,1720765965773,-584.03,0.00014794,2]
[331801814,1720765965783,-678.02,0.00014794,2]
[331801815,1720765965792,-965.58,0.00014794,2]
[331801816,1720765965802,-980.86,0.00014794,2]
[331801817,1720765965813,-500.0,0.00014794,2]
[331801818,1720765965823,-625.22,0.00014794,2]
[331801819,1720765965833,-1043.71,0.00014794,2]
[331801820,1720765965842,-500.0,0.00014794,2]
[331801821,1720765965853,-663.07,0.00014794,2]
[331801822,1720765965863,-1095.96,0.00014794,2]
[331801823,1720765965873,-1311.76,0.00014794,2]
[331801824,1720765965888,-500.0,0.00014794,2]
[331801825,1720765965898,-643.33265616,0.00014794,2]
[331801826,1720765965908,-1064.74,0.00014794,2]
[331801827,1720765965919,-1453.03,0.00014794,2]
[331801828,1720765965929,-506.91,0.00014794,2]
[331801829,1720765965939,-625.46,0.00014794,2]
[331801830,1720765965949,-651.67,0.00014794,2]
[331801831,1720765965960,-1301.15,0.00014794,2]
[331801832,1720765965971,-618.62,0.00014794,2]
[331801833,1720765965981,-795.72057548,0.00014794,2]
[331801834,1720765965994,-387.10942452,0.00014794,2]
[331801835,1720765966006,-119.37318018,0.00014794,2]
[331801836,1720765966018,-751.73681982,0.00014794,2]
[331801837,1720765966028,-886.56,0.00014794,2]
[331801838,1720765966038,-500.0,0.00014794,2]
[331801839,1720765966047,-1019.04012578,0.00014794,2]
[331801840,1720765966059,-66.35987422,0.00014794,2]
[331801841,1720765966069,-896.6,0.00014794,2]
[331801842,1720765966079,-830.96,0.00014794,2]
[331801843,1720765966089,-674.06,0.00014794,2]
[331801844,1720765966100,-1895.01,0.00014794,2]
[331801845,1720765966110,-1172.9,0.00014794,2]
[331801846,1720765966120,-1660.92,0.00014794,2]
[331801847,1720765966131,-644.5,0.00014794,2]
[331801848,1720765966141,-1467.31,0.00014794,2]
[331801849,1720765966152,-981.49,0.00014794,2]
[331801850,1720765966162,-1112.45,0.00014794,2]
[331801851,1720765966172,-721.53,0.00014794,2]
[331801852,1720765966183,-773.09,0.00014794,2]
[331801853,1720765966192,-750.22,0.00014794,2]
[331801854,1720765966202,-617.12,0.00014794,2]
[331801855,1720765966212,-1485.55,0.00014794,2]
[331801856,1720765966222,-645.73,0.00014794,2]
[331801857,1720765966232,-609.33,0.00014794,2]
[331801858,1720765966241,-1043.11,0.00014794,2]
[331801859,1720765966251,-577.94,0.00014794,2]
[331801860,1720765966260,-572.94,0.00014794,2]
[331801861,1720765966270,-1001.09,0.00014794,2]
[331801862,1720765966280,-826.26,0.00014794,2]
[331801863,1720765966289,-863.68,0.00014794,2]
[331801864,1720765966299,-978.71,0.00014794,2]
[331801865,1720765966310,-927.14,0.00014794,2]
[331801866,1720765966320,-1033.49,0.00014794,2]
[331801867,1720765966330,-584.99,0.00014794,2]
[331801868,1720765966340,-924.22,0.00014794,2]
[331801869,1720765966349,-936.64,0.00014794,2]
[331801870,1720765966359,-1551.06,0.00014794,2]
[331801871,1720765966369,-500.0,0.00014794,2]
[331801872,1720765966378,-1266.54,0.00014794,2]
[331801873,1720765966388,-583.16,0.00014794,2]
[331801874,1720765966397,-1145.72,0.00014794,2]
[331801875,1720765966407,-628.89,0.00014794,2]
[331801876,1720765966416,-1072.75,0.00014794,2]
[331801877,1720765966425,-882.64,0.00014794,2]
[331801878,1720765966435,-908.15,0.00014794,2]
[331801879,1720765966445,-617.45,0.00014794,2]
[331801880,1720765966454,-597.8,0.00014794,2]
[331801881,1720765966463,-1413.12,0.00014794,2]
[331801882,1720765966472,-684.65,0.00014794,2]
[331801883,1720765966482,-1269.4,0.00014794,2]
[331801884,1720765966492,-1009.57,0.00014794,2]
[331801885,1720765966501,-820.34,0.00014794,2]
[331801886,1720765966511,-570.33,0.00014794,2]
[331801887,1720765966524,-751.75,0.00014794,2]
[331801888,1720765966535,-1287.67,0.00014794,2]
[331801889,1720765966545,-922.77,0.00014794,2]
[331801890,1720765966555,-1345.39,0.00014794,2]
[331801891,1720765966566,-649.45,0.00014794,2]
[331801892,1720765966576,-500.0,0.00014794,2]
[331801893,1720765966586,-536.18,0.00014794,2]
[331801894,1720765966597,-895.96,0.00014794,2]
[331801895,1720765966607,-566.55,0.00014794,2]
[331801896,1720765966616,-59.46869248,0.00014794,2]
[331801897,1720765966630,-669.91130752,0.00014794,2]
[331801898,1720765966640,-1632.41,0.00014794,2]
[331801899,1720765966650,-1661.47,0.00014794,2]
[331801900,1720765966659,-1622.68,0.00014794,2]
[331801901,1720765966668,-1461.03,0.00014794,2]
[331801902,1720765966678,-600.18,0.00014794,2]
[331801903,1720765966688,-932.1,0.00014794,2]
[331801904,1720765966698,-652.76,0.00014794,2]
[331801905,1720765966708,-590.79,0.00014794,2]
[331801906,1720765966717,-649.76,0.00014794,2]
[331801907,1720765966727,-562.94,0.00014794,2]
[331801908,1720765966737,-500.0,0.00014794,2]
[331801909,1720765966747,-511.55,0.00014794,2]
[331801910,1720765966758,-682.84,0.00014794,2]
[331801911,1720765966768,-500.0,0.00014794,2]
[331801912,1720765966778,-913.11,0.00014794,2]
[331801913,1720765966788,-557.92,0.00014794,2]
[331801914,1720765966798,-665.1,0.00014794,2]
[331801915,1720765966807,-655.14,0.00014794,2]
[331801916,1720765966817,-647.57,0.00014794,2]
[331801917,1720765966827,-1070.59,0.00014794,2]
[331801918,1720765966837,-430.58808034,0.00014794,2]
[331801919,1720765966849,-119.18191966,0.00014794,2]
[331801920,1720765966859,-929.03742311,0.00014794,2]
[331801921,1720765966871,-26.30257689,0.00014794,2]
[331801922,1720765966880,-303.26035722,0.00014794,2]
[331801923,1720765966892,-269.28964278,0.00014794,2]
[331801924,1720765966902,-1087.88,0.00014794,2]
[331801925,1720765966912,-924.38,0.00014794,2]
[331801926,1720765966924,-895.76,0.00014794,2]
[331801927,1720765966934,-66.59035722,0.00014794,2]
[331801928,1720765966947,-311.47,0.00014794,2]
[331801929,1720765966971,-934.80926867,0.00014136,2]
[331801930,1720765967913,-278.36300997,0.00014136,2]
[331801931,1720765967949,-500.0,0.00013698,2]
[331801932,1720765967959,-95.41772136,0.00014136,2]
[331801933,1720765967969,-500.0,0.00014301,2]
[331801934,1720765967979,-789.27,0.00014301,2]
[331801935,1720765967988,-853.13,0.00014684,2]
[331801936,1720765967998,-499.65964278,0.00014794,2]
[331801937,1720765968008,-811.35,0.00014794,2]
[331801938,1720765968018,-701.46,0.00014794,2]
[331801939,1720765968028,-943.64,0.00014794,2]
[331801940,1720765968038,-535.3,0.00014794,2]
[331801941,1720765968048,-533.99,0.00014794,2]
[331801942,1720765968058,-951.0,0.00014794,2]
[331801943,1720765968068,-500.0,0.00014794,2]
[331801944,1720765968078,-691.79,0.00014794,2]
[331801945,1720765968088,-749.0,0.00014794,2]
[331801946,1720765968098,-1153.39,0.00014794,2]
[331801947,1720765968108,-646.61,0.00014794,2]
[331801948,1720765968117,-828.98,0.00014794,2]
[331801949,1720765968127,-797.92,0.00014794,2]
[331801950,1720765968137,-678.2,0.00014794,2]
[331801951,1720765968146,-925.55,0.00014794,2]
[331801952,1720765968155,-742.09,0.00014794,2]
[331801953,1720765968165,-718.26,0.00014794,2]
[331801954,1720765968174,-660.22,0.00014794,2]
[331801955,1720765968184,-685.66,0.00014794,2]
[331801956,1720765968194,-616.92,0.00014794,2]
[331801957,1720765968203,-626.69,0.00014794,2]
[331801958,1720765968213,-1182.27,0.00014794,2]
[331801959,1720765968223,-751.88,0.00014794,2]
[331801960,1720765968232,-578.66,0.00014794,2]
[331801961,1720765968242,-788.87,0.00014794,2]
[331801962,1720765968254,-589.96,0.00014794,2]
[331801963,1720765968264,-1518.85,0.00014794,2]
[331801964,1720765968274,-314.96602165,0.00014794,2]
[331801965,1720765968284,-863.12,0.00014794,2]
[331801966,1720765968294,-500.0,0.00014794,2]
[331801967,1720765968304,-765.3,0.00014794,2]
[331801968,1720765968314,-1173.86,0.00014794,2]
[331801969,1720765968324,-714.93,0.00014794,2]
[331801970,1720765968334,-500.0,0.00014794,2]
[331801971,1720765968344,-889.91,0.00014794,2]
[331801972,1720765968354,-500.0,0.00014794,2]
[331801973,1720765968364,-797.27,0.00014794,2]
[331801974,1720765968374,-508.63,0.00014794,2]
[331801975,1720765968383,-500.0,0.00014794,2]
[331801976,1720765968393,-512.8,0.00014794,2]
[331801977,1720765968403,-1002.89,0.00014794,2]
[331801978,1720765968412,-500.0,0.00014794,2]
[331801979,1720765968422,-905.0,0.00014794,2]
[331801980,1720765968432,-504.61,0.00014794,2]
[331801981,1720765968441,-500.0,0.00014794,2]
[331801982,1720765968451,-500.0,0.00014794,2]
[331801983,1720765968461,-998.09,0.00014794,2]
[331801984,1720765968471,-1181.8,0.00014794,2]
[331801985,1720765968482,-1692.88,0.00014794,2]
[331801986,1720765968492,-806.67,0.00014794,2]
[331801987,1720765968502,-1115.55,0.00014794,2]
[331801988,1720765968512,-49.27515977,0.00014794,2]
[331801989,1720765970232,-365.59291968,0.00013116,2]
[331801990,1720765970244,-365.59291965,0.0001325,2]
[331801991,1720765970257,-500.0,0.00013698,2]
[331801992,1720765970268,-500.0,0.00013698,2]
[331801993,1720765970279,-151.0,0.00013698,2]
[331801994,1720765970291,-500.0,0.00013698,2]
[331801995,1720765970302,-151.0,0.00013698,2]
[331801996,1720765970314,-500.0,0.00013698,2]
[331801997,1720765970325,-500.0,0.00013698,2]
[331801998,1720765970336,-707.20262356,0.00013708,2]
[331801999,1720765970347,-500.0,0.00013753,2]
[331802000,1720765970359,-500.0,0.00013753,2]
[331802001,1720765970370,-500.0,0.00013753,2]
[331802002,1720765970381,-500.0,0.00013753,2]
[331802003,1720765970392,-500.0,0.00013808,2]
[331802004,1720765970403,-500.0,0.00013808,2]
[331802005,1720765970414,-528.25,0.00013863,2]
[331802006,1720765970426,-1308.59,0.00014191,2]
[331802007,1720765970437,-1308.59,0.00014246,2]
[331802008,1720765970447,-1308.59,0.00014301,2]
[331802009,1720765970459,-500.0,0.00014356,2]
[331802010,1720765970471,-789.27,0.00014356,2]
[331802011,1720765970482,-1308.59,0.00014356,2]
[331802012,1720765970494,-500.0,0.0001441,2]
[331802013,1720765970506,-789.27,0.0001441,2]
[331802014,1720765970519,-1308.59,0.0001441,2]
[331802015,1720765970531,-500.0,0.00014465,2]
[331802016,1720765970542,-789.27,0.00014465,2]
[331802017,1720765970554,-1308.59,0.00014465,2]
[331802018,1720765970858,-500.0,0.0001452,2]
[331802019,1720765970869,-789.27,0.0001452,2]
[331802020,1720765970879,-1308.59,0.0001452,2]
[331802021,1720765970890,-789.27,0.00014575,2]
[331802022,1720765970900,-500.0,0.00014575,2]
[331802023,1720765970910,-1308.59,0.00014575,2]
[331802024,1720765970920,-534.54,0.0001463,2]
[331802025,1720765970930,-789.27,0.0001463,2]
[331802026,1720765970940,-500.0,0.0001463,2]
[331802027,1720765970950,-1308.59,0.0001463,2]
[331802028,1720765970961,-534.54,0.00014684,2]
[331802029,1720765970970,-789.27,0.00014684,2]
[331802030,1720765970980,-432.06,0.00014684,2]
[331802031,1720765970991,-853.13,0.00014739,2]
[331802032,1720765971000,-534.54,0.00014739,2]
[331802033,1720765971015,-789.27,0.00014739,2]
[331802034,1720765971025,-1062.58484023,0.00014794,2]
[331802035,1720765971034,-1152.37,0.00014794,2]
[331802036,1720765971044,-1099.21,0.00014794,2]
[331802037,1720765971054,-500.0,0.00014794,2]
[331802038,1720765971063,-958.58,0.00014794,2]
[331802039,1720765971073,-1435.54,0.00014794,2]
[331802040,1720765971083,-933.39,0.00014794,2]
[331802041,1720765971092,-885.22,0.00014794,2]
[331802042,1720765971102,-525.55,0.00014794,2]
[331802043,1720765971112,-578.47,0.00014794,2]
[331802044,1720765971121,-585.1,0.00014794,2]
[331802045,1720765971131,-768.43,0.00014794,2]
[331802046,1720765971141,-478.44,0.00014794,2]
[331802047,1720765971151,-500.66,0.00014794,2]
[331802048,1720765971160,-1131.03,0.00014794,2]
[331802049,1720765971170,-1387.16,0.00014794,2]
[331802050,1720765971179,-769.71,0.00014794,2]
[331802051,1720765971189,-929.61,0.00014794,2]
[331802052,1720765971198,-1195.55,0.00014794,2]
[331802053,1720765971208,-1164.92,0.00014794,2]
[331802054,1720765971218,-592.67,0.00014794,2]
[331802055,1720765971227,-832.05,0.00014794,2]
[331802056,1720765971237,-1157.39,0.00014794,2]
[331802057,1720765971246,-965.25,0.00014794,2]
[331802058,1720765971257,-1057.96,0.00014794,2]
[331802059,1720765971267,-500.0,0.00014794,2]
[331802060,1720765971276,-663.73,0.00014794,2]
[331802061,1720765971286,-500.0,0.00014794,2]
[331802062,1720765971301,-996.83,0.00014794,2]
[331802063,1720765971311,-778.42,0.00014794,2]
[331802064,1720765971322,-500.94,0.00014794,2]
[331802065,1720765971332,-500.0,0.00014794,2]
[331802066,1720765971343,-1011.24,0.00014794,2]
[331802067,1720765971353,-500.0,0.00014794,2]
[331802068,1720765971363,-724.27,0.00014794,2]
[331802069,1720765971373,-948.7,0.00014794,2]
[331802070,1720765971383,-1338.17,0.00014794,2]
[331802071,1720765971394,-894.67,0.00014794,2]
[331802072,1720765971404,-691.16,0.00014794,2]
[331802073,1720765971415,-706.91,0.00014794,2]
[331802074,1720765971425,-1648.59,0.00014794,2]
[331802075,1720765971436,-579.34,0.00014794,2]
[331802076,1720765971446,-534.75,0.00014794,2]
[331802077,1720765971456,-6673.84,0.00014794,2]
[331802078,1720765971466,-791.66,0.00014794,2]
[331802079,1720765971477,-868.6,0.00014794,2]
[331802080,1720765971487,-503.87,0.00014794,2]
[331802081,1720765971497,-1463.05,0.00014794,2]
[331802082,1720765971508,-500.0,0.00014794,2]
[331802083,1720765971520,-1711.11,0.00014794,2]
[331802084,1720765971530,-940.12,0.00014794,2]
[331802085,1720765971540,-1103.87,0.00014794,2]
[331802086,1720765971550,-906.68,0.00014794,2]
[331802087,1720765971561,-838.82,0.00014794,2]
[331802088,1720765971571,-774.99,0.00014794,2]
[331802089,1720765971581,-1003.46,0.00014794,2]
[331802090,1720765971591,-776.49,0.00014794,2]
[331802091,1720765971602,-715.19,0.00014794,2]
[331802092,1720765971612,-811.17,0.00014794,2]
[331802093,1720765971622,-586.28280737,0.00014794,2]
[331802094,1720765971631,-1169.16,0.00014794,2]
[331802095,1720765971641,-2671.99,0.00014794,2]
[331802096,1720765971651,-804.64,0.00014794,2]
[331802097,1720765971662,-516.06,0.00014794,2]
[331802098,1720765971673,-1567.42,0.00014794,2]
[331802099,1720765971682,-1123.97,0.00014794,2]
[331802100,1720765971692,-682.47,0.00014794,2]
[331802101,1720765971702,-1159.17,0.00014794,2]
[331802102,1720765971712,-7796.51,0.00014794,2]
[331802103,1720765971722,-884.1,0.00014794,2]
[331802104,1720765971731,-3427.86,0.00014794,2]
[331802105,1720765971741,-761.42,0.00014794,2]
[331802106,1720765971751,-2349.61,0.00014794,2]
[331802107,1720765971763,-2824.19,0.00014794,2]
[331802108,1720765971772,-1413.14,0.00014794,2]
[331802109,1720765971783,-544.06,0.00014794,2]
[331802110,1720765971794,-746.16,0.00014794,2]
[331802111,1720765971805,-568.05,0.00014794,2]
[331802112,1720765971816,-1225.06,0.00014794,2]
[331802113,1720765971826,-1040.64,0.00014794,2]
[331802114,1720765971837,-502.01,0.00014794,2]
[331802115,1720765971847,-945.48,0.00014794,2]
[331802116,1720765971858,-1864.03,0.00014794,2]
[331802117,1720765971868,-3139.48,0.00014794,2]
[331802118,1720765971879,-782.62,0.00014794,2]
[331802119,1720765971889,-967.92,0.00014794,2]
[331802120,1720765971900,-817.59,0.00014794,2]
[331802121,1720765971909,-760.77,0.00014794,2]
[331802122,1720765971919,-672.02,0.00014794,2]
[331802123,1720765971929,-500.0,0.00014794,2]
[331802124,1720765971938,-1369.87,0.00014794,2]
[331802125,1720765971948,-503.52,0.00014794,2]
[331802126,1720765971958,-927.94,0.00014794,2]
[331802127,1720765971967,-510.11,0.00014794,2]
[331802128,1720765971977,-883.29,0.00014794,2]
[331802129,1720765971986,-703.12,0.00014794,2]
[331802130,1720765971996,-913.43,0.00014794,2]
[331802131,1720765972006,-1249.82,0.00014794,2]
[331802132,1720765972015,-698.85,0.00014794,2]
[331802133,1720765972025,-513.61,0.00014794,2]